Cogmind - Beta 14 @@@ ROGUE MODE // 2024.09.14 @ 00:53:24 Player: Zaros426 Result: Destroyed by as-93381 with Assembled Heavy Rifle Performance ------------- Evolutions (0) 0 Regions Visited (2) 400 Robots Destroyed (28) 140 Value Destroyed (303) 303 Prototype IDs (4) 80 Alien Tech Used (0) 0 Bonus (0) 0 TOTAL SCORE: 923 Bonus ------- None Cogmind --------- Core Integrity 0/250 Matter 257/300 Energy 246/250 System Corruption 11% Temperature Cool (2) Movement Treading (240) Ox1 Location -10/Mines Parts ------- > --- POWER (1) -------- Ion Engine > --- PROPULSION (2) --- Light Treads Light Treads > --- UTILITY (2) ------ High-capacity Storage Unit Targeting Computer > --- WEAPON (2) ------- EM Pulse Gun (fused) > --- INVENTORY (20) --- Light Ion Engine Light Treads Light Treads Huge Storage Unit Large Battery (200) High-capacity Matter Pod (200) Sensor Array Signal Interpreter Improved Terrain Scanner Seismic Detector EM Pulse Gun Light Cannon Light Cannon Grenade Launcher Datajack Mining Claw Peak State ------------ > --- POWER ------------ Light Ion Engine > --- PROPULSION ------- Light Treads Light Treads > --- UTILITY ---------- Large Storage Unit Targeting Computer > --- WEAPON ----------- Beam Cannon Light Assault Rifle > --- INVENTORY -------- Light Treads Light Treads Large Battery High-capacity Matter Pod Improved Terrain Scanner Seismic Detector Light Assault Rifle Mining Laser [Rating: 8] Favorites ----------- Power Light Ion Engine Engine Light Ion Engine Propulsion Light Treads Treads Light Treads Leg Aluminum Leg Utility Targeting Computer Storage Large Storage Unit Processor Targeting Computer Weapon EM Pulse Gun Energy Gun EM Pulse Gun Energy Cannon Beam Cannon Ballistic Gun Light Assault Rifle Launcher Grenade Launcher Slashing Weapon Mining Claw Build | -11 -10 -10 ------- Run | Yrd Mat Min Slots Evolved . | . . . Power . | . . . Propulsion . | . . . Utility . | . . . Weapon . | . . . Parts Attached 30 | 6 15 9 Power 5 | 1 2 2 Engine 5 | 1 2 2 Core . | . . . Reactor . | . . . Propulsion 6 | 2 1 3 Treads 5 | 2 1 2 Leg 1 | . . 1 Wheel . | . . . Hover . | . . . Flight . | . . . Utility 4 | 1 2 1 Device . | . . . Storage 3 | 1 1 1 Processor 1 | . 1 . Hackware . | . . . Protection . | . . . Artifact . | . . . Weapon 15 | 2 10 3 Energy Gun 7 | . 6 1 Energy Cannon 1 | . 1 . Ballistic Gun 2 | 2 . . Ballistic Cannon . | . . . Launcher 4 | . 2 2 Special Weapon . | . . . Impact Weapon . | . . . Slashing Weapon 1 | . 1 . Piercing Weapon . | . . . Special Melee Weapon . | . . . Unidentified Prototypes . | . . . Parts Lost 5 | . 3 2 Power 1 | . 1 . Propulsion 2 | . 1 1 Utility . | . . . Weapon 2 | . 1 1 Highest Loss Streak 2 | . 2 1 To Critical Strikes . | . . . Average Slot Usage (%) 97 | . 96 99 Engine 13 | . 13 14 Treads 27 | . 27 27 Storage 14 | . 14 14 Processor 12 | . 11 14 Energy Gun 16 | . 11 27 Energy Cannon 4 | . 6 . Ballistic Gun 6 | . 9 . Peak Build Rating 8 | 6 8 8 Average Rating 7 | 5 7 7 On Entrance 4 | . 6 8 Naked Turns . | . . . Heaviest Build 50 | 10 30 50 Greatest Support 40 | 40 40 40 Greatest Overweight (x) 1 | . . 1 Average Overweight (x) . | . . . Largest Inventory Capacity 20 | 8 15 20 Average Capacity 15 | 7 14 16 Most Carried 16 | 3 15 16 Average Carried 11 | . 10 14 Final Capacity 20 | 8 15 20 Final Carried 16 | 3 15 16 Class Distribution -------------------- 100% | Mutant Dominant Class ---------------- Mutant | -10/Materials Mutant | -10/Mines Resources | -11 -10 -10 ----------- Run | Yrd Mat Min Matter Collected 852 | 239 482 131 Remotely . | . . . Salvage Created 611 | 16 523 72 Parts 49 | 4 38 7 Haulers Intercepted 2 | . 2 . Recyclers Shooed 2 | 1 1 . Parts Field Recycled . | . . . Retrieved Matter . | . . . Parts Self-Destructed . | . . . Prevented . | . . . Kills | -11 -10 -10 ------- Run | Yrd Mat Min Combat Hostiles Destroyed 16 | . 10 6 Guns 7 | . 6 1 Cannons 2 | . 2 . AOE 7 | . 2 5 Classes Destroyed 9 | 1 8 . Worker 3 | . 3 . Builder 1 | . 1 . Tunneler 1 | 1 . . Hauler 2 | . 2 . Recycler 1 | . 1 . Operator 1 | . 1 . Watcher 3 | . 3 . Swarmer 15 | . 9 6 Grunt 1 | . 1 . Best Kill Streak 5 | 1 5 3 Combat Bots Only 3 | . 3 3 Max Kills in Single Turn 3 | 1 2 3 Gunslinging . | . . . Exploded 3 | . 1 3 Melee . | . . . Uniques/NPCs Destroyed . | . . . Combat | -11 -10 -10 -------- Run | Yrd Mat Min Hostile Shots Fired 106 | . 85 21 Missed 28 | . 22 6 Damage Taken 1148 | . 797 351 Core 253 | . 166 87 Absorbed by Shields . | . . . Core Remaining (%) 100 | 100 . . Volleys Fired 71 | 6 60 5 Largest 2 | 2 2 2 Hottest 80 | 40 80 80 Shots Fired 141 | 12 120 9 Gun 115 | 12 95 8 Cannon 23 | . 23 . Launcher 3 | . 2 1 Special . | . . . Kinetic 66 | 12 54 . Thermal 23 | . 23 . Explosive 3 | . 2 1 Electromagnetic 49 | . 41 8 Robot Hit Streak 5 | 3 5 4 Robot Miss Streak 6 | 2 6 1 Penetration Max . | . . . Secondary Targets 2 | . 2 . Max Gunslinging Chain 1 | . 1 . Shots Hit Robots 69 | 7 57 5 Core Hits 33 | 3 24 6 Critical Kills . | . . . Critical Parts Destroyed . | . . . Critical Strikes . | . . . Melee Attacks 4 | . 4 . Impact . | . . . Slashing 4 | . 4 . Piercing . | . . . Sneak Attacks . | . . . Combat Hostiles . | . . . Follow-up Attacks . | . . . Damage Inflicted 1197 | 58 902 237 Guns 659 | 58 550 51 Cannons 179 | . 179 . Explosions 359 | . 173 186 Melee . | . . . Ramming . | . . . Kinetic 319 | 58 261 . Thermal 263 | . 179 84 Explosive 275 | . 173 102 Electromagnetic 340 | . 289 51 Impact . | . . . Slashing . | . . . Piercing . | . . . Highest Corruption 11 | . 11 11 Average Corruption 8 | . 7 11 Corruption Purged . | . . . Corruption Blocked . | . . . Effects 57 | . 31 26 Message Errors 8 | . 5 3 Matter Fused 17 | . 6 11 Heat Flow Errors 8 | . 6 2 Energy Discharges 5 | . 2 3 Parts Rejected 1 | . 1 . Parts Fused 1 | . 1 . Data Loss (minor) 9 | . 4 5 Data Loss (major) 4 | . 3 1 Misfires 3 | . 3 . Alerts 1 | . . 1 Overload Shots . | . . . Overflow Damage 7 | . 7 . Projectiles . | . . . Explosions 7 | . 7 . Melee . | . . . Knockbacks . | . . . Impact . | . . . Kinetic . | . . . Secondary . | . . . Self-Inflicted Damage . | . . . Shots . | . . . Rammed . | . . . Targets Rammed . | . . . Kicked . | . . . Crushed . | . . . Highest Temperature 315 | . 315 233 Average Temperature 62 | . 60 71 Received Heat Transfer 20 | . . 20 Siege Activations . | . . . Robots Corrupted . | . . . Combat Hostiles . | . . . Parts Fried 1 | . 1 . Impact Corruptions . | . . . Robots Melted . | . . . Combat Hostiles . | . . . Parts Melted . | . . . Heat Transferred 470 | . 370 100 Parts Sabotaged . | . . . Parts Stolen . | . . . Parts Stripped . | . . . Power Chain Reactions 1 | . . 1 Alert | -11 -10 -10 ------- Run | Yrd Mat Min Peak Influence 153 | 5 153 132 Initial 51 | . 3 51 Average 81 | 1 73 111 Maximum Alert Level . | . . . Low Security (%) 100 | 100 100 100 Level 1 . | . . . Level 2 . | . . . Level 3 . | . . . Level 4 . | . . . Level 5 . | . . . High Security . | . . . Max Security . | . . . Squads Dispatched 2 | . 2 . Investigation 2 | . 2 . Extermination . | . . . Reinforcement . | . . . Assault . | . . . Garrison . | . . . Intercept . | . . . Searches Triggered . | . . . Construction Impeded . | . . . Haulers Reinforced . | . . . Active Scanning Responses . | . . . Cargo Convoy Interrupts . | . . . Stealth | -11 -10 -10 --------- Run | Yrd Mat Min Distress Signals 3 | . 3 . Communications Jammed . | . . . Distress Signals . | . . . Times Spotted 44 | . 25 19 Peak Tracking Total 9 | . 5 9 Tactical Retreats 2 | . 1 1 Traps | -11 -10 -10 ------- Run | Yrd Mat Min Traps Triggered 2 | . 2 . Indirectly . | . . . Trap Hack Attempts . | . . . Triggered . | . . . Disarmed . | . . . Reprogrammed . | . . . Reused . | . . . Traps Extracted . | . . . Installed . | . . . Triggered . | . . . Machines | -11 -10 -10 ---------- Run | Yrd Mat Min Machines Disabled 3 | . 2 1 Max in Single Turn 1 | . 1 1 Machines Repaired . | . . . Machines Dismantled . | . . . Machines Sabotaged . | . . . Overloaded Fab Kills . | . . . Hacking | -11 -10 -10 --------- Run | Yrd Mat Min Machines Accessed 10 | . 10 . Terminals 7 | . 7 . Fabricators . | . . . Repair Stations 1 | . 1 . Recycling Units 2 | . 2 . Scanalyzers . | . . . Garrison Access . | . . . Total Hacks 27 | . 27 . Successful 15 | . 15 . Failed 11 | . 11 . Catastrophic 1 | . 1 . Database Lockouts 1 | . 1 . Manual 15 | . 15 . Terminals 23 | . 23 . Fabricators . | . . . Repair Stations 2 | . 2 . Recycling Units 2 | . 2 . Scanalyzers . | . . . Garrison Access . | . . . Terminal Hacks 7 | . 7 . Robot Analysis 2 | . 2 . Prototype ID Bank 3 | . 3 . Patrol Status 1 | . 1 . Zone Layout 1 | . 1 . Fabricator Hacks . | . . . Repair Station Hacks . | . . . Recycling Unit Hacks . | . . . Scanalyzer . | . . . Garrison Access Hacks . | . . . Unauthorized Hacks 8 | . 8 . Terminals 6 | . 6 . Skim 6 | . 6 . Fabricators . | . . . Repair Stations . | . . . Recycling Units 2 | . 2 . Tunnel 2 | . 2 . Scanalyzers . | . . . Garrison Access . | . . . Data Cores Recovered . | . . . Used . | . . . Hacking Detections 7 | . 7 . Full Trace Events . | . . . Feedback Events . | . . . Feedback Blocked . | . . . Robot Schematics Acquired . | . . . Robots Built . | . . . Authchips . | . . . Time . | . . . Total Robot Build Rating . | . . . Part Schematics Acquired . | . . . Parts Built . | . . . Authchips . | . . . Time . | . . . Total Part Build Rating . | . . . Parts Repaired . | . . . Time . | . . . Parts Recycled . | . . . Recycled Matter . | . . . Retrieved Matter . | . . . Retrieved Components . | . . . Parts Scanalyzed . | . . . Part Schematics Acquired . | . . . Parts Damaged . | . . . Bothacking | -11 -10 -10 ------------ Run | Yrd Mat Min Used RIF Installer . | . . . Robots Hacked . | . . . Non-combat . | . . . Combat . | . . . Robot Hacks Applied . | . . . Relay Couplers Released . | . . . Fabnet Peak Effective % . | . . . Robots Rewired . | . . . Allies Hacked . | . . . Hacks Repelled . | . . . Allies | -11 -10 -10 -------- Run | Yrd Mat Min Total Allies . | . . . Largest Group . | . . . Highest-Rated Group . | . . . Highest-Rated Ally . | . . . Total Orders . | . . . Ally Attacks . | . . . Total Damage . | . . . Kills . | . . . Allies Corrupted . | . . . Allies Melted . | . . . Intel | -11 -10 -10 ------- Run | Yrd Mat Min Robot Analysis Total 2 | . 2 . Derelict Logs Recovered 3 | . . 3 Drone Launches . | . . . Drone Recoveries . | . . . Exploration | -11 -10 -10 ------------- Run | Yrd Mat Min Turns Passed 2269 | 83 1530 656 Spaces Moved 1154 | 37 790 327 Core 2 | 2 . . Treads 1152 | 35 790 327 Legs . | . . . Wheels . | . . . Hover . | . . . Flight . | . . . Fastest Speed 50 | 50 160 160 Average Speed 167 | 154 160 185 Slowest Speed 240 | 160 160 240 Overloaded Moves . | . . . Propulsion Burnouts . | . . . Robots Hopped . | . . . Cave-ins Triggered 1 | . 1 . Exploration Rate (%) 58 | 3 98 73 Regions Visited 2 Branch Regions 1 Pre-discovered Areas 4 | . 3 1 Known Exits Taken . | . . . Unknown Exits Taken 2 | 1 1 . Scrap Searched 1 | . . 1 Spaces Dug 3 | . 3 . Terrain Destroyed 33 | . 18 15 Melee 3 | . 3 . Projectile . | . . . AOE 30 | . 15 15 Terrain Rammed . | . . . Walls Destroyed . | . . . Machines Disabled . | . . . Actions | -11 -10 -10 --------- Run | Yrd Mat Min Total 1358 | 51 940 367 Wait 67 | . 47 20 Move 1152 | 36 789 327 Hop . | . . . Pick Up 22 | 3 17 2 Fast Attach 14 | 6 6 2 Attach 4 | . 3 1 Detach 1 | . 1 . Swap 12 | . 6 6 Drop 11 | . 7 4 Fire 71 | 6 60 5 Melee 4 | . 4 . Ram . | . . . Kick . | . . . Crush . | . . . Escape Stasis . | . . . Rewire . | . . . Trap . | . . . Miscellaneous . | . . . Route ------- -11/Scrapyard -10/Materials (discovered 5 exits: *Mat x3 / [*Min] / Sub) -10/Mines (discovered 3 exits: *Mat x2 / Sub) History --------- Turn | Location | Event 15 | -11/Scrapyard | Discovered new exit (range 16) 84 | -11/Scrapyard | Entered Materials 278 | -10/Materials | Central database locked down 300 | -10/Materials | Build established: Mutant 338 | -10/Materials | Discovered new exit (range 10) 489 | -10/Materials | Discovered new exit (range 3) 759 | -10/Materials | Discovered new exit (range 8) 1078 | -10/Materials | Crushed by falling debris 1078 | -10/Materials | Core integrity fell below 50% 1078 | -10/Materials | System corruption reached 10% 1236 | -10/Materials | Learned location of 2 exits from Subcaves 1253 | -10/Materials | Discovered new exit (range 7) 1281 | -10/Materials | Learned 2 Mines zone layouts 1316 | -10/Materials | Learned location of Subcaves (-10) 1339 | -10/Materials | Learned 4 Recycling zone layouts 1355 | -10/Materials | Learned location of 1 exit from Recycling 1370 | -10/Materials | Learned Storage stockpile data 1397 | -10/Materials | Identified exit to Subcaves 1434 | -10/Materials | Learned Storage emergency access door positions 1614 | -10/Materials | Entered Mines 1615 | -10/Mines | Identified exit to Materials 1617 | -10/Mines | Met a Derelict bent on vengeance 1987 | -10/Mines | Found DCF Scrap (13 items) 2107 | -10/Mines | Learned Materials stockpile data 2236 | -10/Mines | Assembled infested the area 2241 | -10/Mines | Assisted by a Guerilla fighting off Assembled 2262 | -10/Mines | Core integrity fell below 20% 2270 | -10/Mines | Destroyed by as-93381 with Assembled Heavy Rifle Last Messages --------------- 02236_ ALERT: Infestation in the mines, dispatching Demolisher response squad. 02237_ System corrupted: Component data lost. 02240_ 0M-R6M(h): "I'll hold them off! Go on ahead or try to find another way!" 02241_ A derelict emerges from the shadows: "You need to get out of here! I've been tracking a group of Assembled to figure out where they're coming from, and they're closing on this area, come on!" 02242_ HV Slug penetrates Pressure Siphon. 02242_ Pressure Siphon disabled. 02244_ HV Slug penetrates as-11175. 02244_ as-11175 suffers critical hit (Destroy). 02244_ as-51041 suffers critical hit (Destroy). 02244_ as-51041 destroyed. 02261_ Core Extractor disabled. 02267_ System corrupted: Matter fused (-5). 02267_ as-78955 destroyed. 02267_ as-34430 destroyed. 02267_ as-54853 destroyed. 02267_ as-40202 destroyed. 02267_ Grenade Launcher destroyed. 02268_ as-17865 destroyed. 02269_ D-53 Grenadier destroyed. Map ----- +----------------------------------------------------+ | ?????????????????????????????????????? | | ?????????????????????????????????????? | | ?????????????????????????????????????? | | ?????????????????????????????????????? | | ?????????????????????????????????????? | | ?????????????????????????????????????? | | ?????????????????????????????????????? | | ??????????????????????? #????????????? | | ??????????????????????? #???? ???? | | ????????####???????????? ???? #??? | | ???????? ????????????? ??? #??? | | ??????? ?????????????? """ #??? | | ??????? #?????????????? """ % ##?? | | ###???? #?????????????? """ a #?? | | ##### #??????????????# "%" #?? | | #??????????????# a #??? | | #?????????????## a #??? | | ######?????????????# ???? | | #??????????????????# ] ?????? | | ##??????????????????# =%#??????? | | ###????????????????????# #???????? | | #??????????????????????# #???????? | | #??????????????????????## ##???????? | | #????????????????????#### #????????? | | #???????????????????## # #??????? | | #???????????????????# @ #???????? | | #???????????????????# ##??????? | | #??????????????????# #??????? | | #?????????????????# #??????? | | #????????????????# ] ##??????? | | #####???????????## % #??????? | | ## ##??????????# d * "" ##??????? | | ##?????????# "" #???????? | | ##??????###% #???????? | | ### ##????## ### #####???????? | | ??# ###### #?####???????????? | | ??# ##????????????????? | | ??# ######???????????? | | ??# ##??????????? | | ## ## ####### #??????????? | | ### ###???## #??????????? | | #????# ##??????????? | | #????## ####???????????? | | ##### #?????## ##?????????####?? | | ????#!*#??????# ##????????# #?? | | ????#=!#??????# ###?????# ##? | | ????# ]#??????# ##????# #? | | ????# !#??????# #????# #? | | ????#*%#??????# #???## #? | | ? ?????#=*#??????## #??## #? | +----------------------------------------------------+ Best States ------------- Heat Dissipation 25 Energy Generation 10 Energy Capacity 250 Matter Stores 300 Matter Capacity 300 Sight Range 16 Terrain Scan Density 10 Evasion (%) 40 Targeting Accuracy 5 Recoil Reduction 2 Item Schematics ----------------- None Robot Schematics ------------------ None Fabricated ------------ Nothing Alien Tech Used ----------------- None Achievements -------------- None Challenges ------------ None Game ------ Seed PulseGyrokineticChip Manual? 0 Play Time 00:16:18 Cumulative 83.3 hours Start 2024.09.14 @ 00:37:36 End 2024.09.14 @ 00:53:24 Sessions 1 Manual Loads 0 Difficulty Rogue Special Mode None Game No. 46 Rogue 46 Adventurer 0 Explorer 0 Win Type - Total 0 Types 0/0/0/0/0/0/0/0/0 Lore% 44 Gallery% 60 Achievement% 51 Wizard Run 0 Options --------- Layout 0 ASCII 0 Keyboard 0 Movement Mouse Keybinds 0 Fullscreen 1 Font 24/Smallcaps Map View 183x50 Zoom Use 0% Tactical HUD 1 Map Filters NONE Filters NONE Steam 0 RUN: c0003809-f8aa-44eb-be14-77498ee2f485